bitfinex-derivatives/quotes_SOLF0:USTF0_20240926
["timestamp","ask_amount","ask_price","bid_price","bid_amount"]
[1727360137953,27.55,153.62,153.54,3.2561]
[1727360138156,3.2556,153.58,153.48,27.55]
[1727360138353,3.2556,153.58,153.53,3.2563]
[1727360138753,3.2555,153.58,153.53,3.2563]
[1727360138956,27.55,153.62,153.54,3.2561]
[1727360139253,3.2554,153.59,153.48,27.55]
[1727360139453,27.55,153.64,153.48,27.55]
[1727360139955,27.55,153.62,153.48,27.55]
[1727360140160,27.55,153.59,153.46,3.24133381]
[1727360140357,3.2567,153.52,153.44,78.2]
[1727360140658,27.55,153.56,153.48,3.2574]
[1727360140861,3.2568,153.52,153.44,78.2]
[1727360141158,27.55,153.54,153.47,3.2577]
[1727360141362,3.2568,153.52,153.47,3.2577]
[1727360141555,3.2568,153.52,153.44,78.2]
[1727360141759,27.55,153.54,153.44,78.2]
[1727360142154,27.55,153.54,153.4,27.55]
[1727360142463,1.3357,153.57,153.43,27.55]
[1727360142464,3.2566,153.53,153.43,27.55]
[1727360142658,27.55,153.56,153.44,3.32442648]
[1727360143057,27.55,153.56,153.43,27.55]
[1727360143451,27.55,153.56,153.51,3.2568]
[1727360143659,1.3357,153.57,153.45,27.55]
[1727360143860,2.6157,153.58,153.48,27.55]
[1727360144059,3.2553,153.59,153.48,27.55]
[1727360144261,2.7137,153.63,153.5,27.55]
[1727360144555,3.2551,153.6,153.5,27.55]
[1727360144754,2.7137,153.63,153.46,6.5158]
[1727360144961,27.55,153.6,153.46,6.5158]
[1727360145256,30.2637,153.63,153.49,27.55]
[1727360145563,30.2637,153.63,153.55,3.2559]
[1727360145968,30.2637,153.63,153.51,27.55]
[1727360146170,30.2637,153.63,153.56,3.2557]
[1727360146559,3.2551,153.6,153.56,3.2557]
[1727360146760,3.2551,153.6,153.51,27.55]
[1727360146761,30.2637,153.63,153.51,27.55]
[1727360146955,30.2637,153.63,153.48,27.55]
[1727360147261,27.55,153.6,153.51,3.2568]
[1727360147560,3.2559,153.56,153.46,105.73]
[1727360148063,27.55,153.6,153.46,105.73]
[1727360148755,2.7137,153.63,153.54,3.2562]
[1727360148756,30.2637,153.63,153.54,3.2562]
[1727360148958,30.2637,153.63,153.49,27.55]
[1727360149160,3.2553,153.59,153.49,27.55]
[1727360150359,3.2553,153.59,153.55,3.256]
[1727360150558,2.7137,153.63,153.53,27.55]
[1727360150963,2.7137,153.63,153.57,3.2555]
[1727360151163,2.7137,153.63,153.53,27.55]
[1727360151459,2.7137,153.63,153.55,3.2559]
[1727360151666,3.2551,153.6,153.55,3.2559]
[1727360152266,3.2552,153.59,153.55,3.2559]
[1727360153264,3.2555,153.58,153.51,27.55]
[1727360153567,2.7137,153.63,153.51,27.55]
[1727360154068,2.7137,153.63,153.55,3.2559]
[1727360154270,2.7137,153.63,153.51,30.729368]
[1727360154570,3.255,153.6,153.56,3.2558]
[1727360154868,2.7137,153.63,153.53,27.55]
[1727360155673,27.55,153.55,153.43,3.18984619]
[1727360155869,27.55,153.55,153.35,3.28376472]
[1727360155870,27.55,153.52,153.44,3.2582]
[1727360156165,27.55,153.52,153.38,27.55]
[1727360156565,1.405,153.53,153.4,27.55]
[1727360156765,1.405,153.53,153.42,27.55]
[1727360157562,2.6135,153.54,153.42,27.55]
[1727360158264,30.1635,153.54,153.4,27.55]
[1727360158660,2.6135,153.54,153.43,27.55]
[1727360159069,3.2566,153.53,153.47,3.2576]
[1727360159370,1.405,153.58,153.45,27.55]
[1727360159565,3.2559,153.56,153.45,27.55]
[1727360159765,1.405,153.58,153.45,27.55]
[1727360160669,1.405,153.58,153.48,27.55]
[1727360160867,2.5355,153.59,153.48,27.55]
[1727360161062,109.01718183,153.7,153.5,27.55]
[1727360161063,27.55,153.64,153.5,27.55]
[1727360161261,1.3852,153.68,153.45,27.55]
[1727360161262,27.55,153.66,153.53,27.55]
[1727360161662,27.55,153.66,153.57,3.2555]
[1727360161663,3.2545,153.63,153.57,3.2555]
[1727360162175,3.9207,153.68,153.55,27.55]
[1727360163065,3.2541,153.65,153.55,27.55]
[1727360163464,3.9207,153.68,153.55,27.55]
[1727360163872,3.2543,153.64,153.58,3.2554]
[1727360164271,3.9207,153.68,153.55,27.55]
[1727360164571,27.55,153.66,153.53,27.55]
[1727360164773,27.55,153.63,153.5,27.55]
[1727360164970,27.55,153.63,153.53,3.2565]
[1727360164971,3.2553,153.59,153.53,3.2565]
[1727360165271,27.55,153.63,153.5,27.55]
[1727360165470,27.55,153.63,153.53,3.2564]
[1727360165671,27.55,153.61,153.47,78.18]
[1727360165876,1.3878,153.6,153.47,78.18]
[1727360166068,3.2553,153.59,153.53,3.2563]
[1727360166769,3.2555,153.58,153.53,3.2563]
[1727360166970,1.3878,153.6,153.47,78.18]
[1727360167166,2.7135,153.6,153.47,78.18]
[1727360167373,3.2559,153.56,153.47,78.18]
[1727360167568,27.55,153.58,153.47,78.18]
[1727360167975,3.2559,153.56,153.51,3.2569]
[1727360168172,1.4012,153.59,153.47,78.18]
[1727360168371,3.2563,153.54,153.47,78.18]
[1727360168572,3.2563,153.54,153.49,3.2573]
[1727360169179,27.55,153.58,153.47,78.18]
[1727360169981,1.4012,153.59,153.47,78.18]
[1727360170378,3.2556,153.57,153.52,3.2567]
[1727360171178,3.2556,153.57,153.47,78.18]
[1727360171179,27.55,153.63,153.5,27.55]
[1727360171579,3.2551,153.6,153.5,27.55]
[1727360171777,2.6602,153.64,153.5,27.55]
[1727360171977,2.6602,153.64,153.53,27.55]
[1727360172180,3.2544,153.63,153.58,3.2552]
[1727360172580,2.6602,153.64,153.53,27.55]
[1727360173080,3.2546,153.62,153.57,3.2555]
[1727360174085,1.3203,153.67,153.53,30.74354838]
[1727360174786,3.2544,153.63,153.58,3.2553]
[1727360175384,27.55,153.63,153.5,27.55]
[1727360175982,3.2548,153.62,153.56,3.2557]
[1727360176183,27.55,153.63,153.56,3.2557]
[1727360176382,3.2551,153.6,153.54,3.2561]
[1727360176580,3.2551,153.6,153.47,78.18]
[1727360176581,27.55,153.63,153.48,27.55]
[1727360176788,27.55,153.6,153.48,27.55]
[1727360177085,27.55,153.6,153.53,3.2564]
[1727360177284,27.55,153.6,153.48,27.55]
[1727360177483,3.2553,153.59,153.53,3.2563]
[1727360177681,27.5,153.61,153.48,27.5]
[1727360178083,27.5,153.61,153.52,3.2565]
[1727360178084,2.6285,153.6,153.52,3.2565]
[1727360178891,2.6285,153.6,153.48,27.5]
[1727360179192,27.5,153.64,153.5,27.5]
[1727360179390,3.2547,153.62,153.58,3.2554]
[1727360179579,27.5,153.64,153.58,3.2554]
[1727360179778,3.2545,153.63,153.58,3.2554]
[1727360179981,2.6285,153.66,153.61,3.2546]
[1727360180185,2.6285,153.66,153.55,27.5]
[1727360180392,3.2543,153.64,153.52,27.5]
[1727360180585,27.5,153.62,153.48,27.5]
[1727360180781,27.5,153.62,153.47,78.18]
[1727360180981,30.7546,153.62,153.57,3.2555]
[1727360181989,27.5,153.62,153.5,27.5]
[1727360182188,27.5,153.62,153.47,78.18]
[1727360182487,27.5,153.62,153.55,3.256]
[1727360182488,3.2553,153.59,153.55,3.256]
[1727360182697,27.5,153.62,153.55,3.256]
[1727360182882,27.5,153.62,153.56,3.2557]
[1727360182883,3.2548,153.61,153.56,3.2557]
[1727360183086,27.5,153.65,153.5,27.5]
[1727360184289,2.6285,153.66,153.47,78.18]
[1727360184290,2.6285,153.66,153.56,27.5]
[1727360184488,2.6285,153.66,153.56,30.79087947]
[1727360184687,3.2541,153.65,153.6,3.2548]
[1727360185190,3.2544,153.63,153.53,27.5]
[1727360185390,3.2544,153.63,153.54,3.33224755]
[1727360185589,2.6285,153.66,153.53,27.5]
[1727360185785,3.2544,153.63,153.58,3.2553]
[1727360186197,3.2544,153.63,153.53,30.78143322]
[1727360187088,3.2544,153.63,153.58,3.2552]
[1727360187492,2.6285,153.66,153.56,3.2557]
[1727360187493,27.5,153.64,153.56,3.2557]
[1727360187791,27.5,153.64,153.53,27.5]
[1727360187792,27.5,153.64,153.52,3.33213936]
[1727360187991,27.5,153.64,153.5,105.64]
[1727360187992,3.2549,153.61,153.56,3.2557]
[1727360188384,27.5,153.64,153.5,105.64]
[1727360188599,3.2553,153.59,153.5,105.64]
[1727360188891,27.5,153.62,153.5,78.14]
[1727360189095,3.2556,153.58,153.5,78.14]
[1727360189599,3.2556,153.58,153.53,3.2564]
[1727360190089,27.5,153.62,153.53,3.2564]
[1727360190090,3.2557,153.57,153.53,3.2564]
[1727360190290,3.2557,153.57,153.52,3.2566]
[1727360190492,3.2557,153.57,153.48,27.5]
[1727360190691,3.2555,153.58,153.48,27.5]
[1727360190892,27.5,153.62,153.51,27.5]
[1727360191095,27.5,153.64,153.51,27.5]
[1727360191392,27.5,153.64,153.45,78.14]
[1727360191393,3.2546,153.62,153.53,27.5]
[1727360191590,2.6285,153.66,153.53,27.5]
[1727360191591,2.6285,153.66,153.58,3.2552]
[1727360191790,2.6285,153.66,153.53,30.77046961]
[1727360192195,27.5,153.65,153.53,3.27046961]
[1727360192400,3.2549,153.61,153.51,27.5]
[1727360192697,3.2549,153.61,153.57,3.2555]
[1727360193099,27.5,153.65,153.53,3.21837957]
[1727360193296,27.5,153.65,153.57,3.2555]
[1727360193492,3.2546,153.62,153.57,3.2555]
[1727360194090,3.2544,153.63,153.58,3.2554]
[1727360194294,2.6285,153.66,153.54,27.5]
[1727360194895,2.6285,153.66,153.54,30.77895011]
[1727360195696,2.6285,153.66,153.56,27.5]
[1727360195900,2.6285,153.66,153.54,30.77895011]
[1727360196100,3.2541,153.65,153.54,30.77895011]
[1727360196303,3.2541,153.65,153.55,6.361543]
[1727360196595,5.8823,153.66,153.56,27.5]
[1727360196796,15.51384868,154.22,153.59,27.5]
[1727360196797,27.5,153.72,153.59,27.5]
[1727360197192,27.5,153.72,153.63,3.2542]
[1727360197498,27.5,153.72,153.59,27.5]
[1727360197797,27.5,153.72,153.59,30.82160345]
[1727360197999,3.2534,153.68,153.59,30.82160345]
[1727360198196,27.5,153.72,153.64,3.254]
[1727360198501,3.2532,153.69,153.64,3.254]
[1727360198695,27.5,153.72,153.64,3.254]
[1727360199096,3.2533,153.68,153.65,3.2539]
[1727360199299,3.2533,153.68,153.59,30.82160345]
[1727360199796,3.2533,153.68,153.64,3.254]
[1727360199997,3.2535,153.67,153.64,3.254]
[1727360200198,3.2535,153.67,153.59,30.82160345]
[1727360200398,27.5,153.72,153.63,3.2543]
[1727360200906,27.5,153.72,153.59,30.82160345]
[1727360201294,27.5,153.72,153.63,3.2542]
[1727360201503,3.2538,153.66,153.63,3.2542]
[1727360202000,27.5,153.7,153.59,3.32160345]
[1727360202201,27.5,153.7,153.56,105.64]
[1727360202702,27.5,153.7,153.56,108.91667952]
[1727360202703,3.2541,153.65,153.56,108.91667952]
[1727360202901,3.2541,153.65,153.57,6.36457689]
[1727360203102,3.2541,153.65,153.61,3.2547]
[1727360203894,27.5,153.7,153.59,3.255]
[1727360204099,27.5,153.67,153.59,3.255]
[1727360204405,3.2544,153.63,153.59,3.255]
[1727360204606,27.5,153.67,153.56,81.41667952]
[1727360204806,6.505,153.72,153.56,108.91667952]
[1727360204807,27.5,153.7,153.56,108.91667952]
[1727360205001,3.2536,153.67,153.59,27.5]
[1727360205804,31.4823,153.75,153.62,27.5]
[1727360206604,3.9823,153.75,153.56,108.91667952]
[1727360206806,27.5,153.69,153.56,81.41667952]
[1727360207103,3.2539,153.66,153.61,3.2547]
[1727360207506,27.5,153.69,153.56,81.41667952]
[1727360207710,3.2537,153.67,153.57,33.86385269]
[1727360207906,27.5,153.69,153.57,33.86385269]
[1727360208107,3.2537,153.66,153.61,3.2546]
[1727360208603,3.9823,153.75,153.6,27.5]
[1727360208604,27.5,153.74,153.6,27.5]
[1727360208810,3.9823,153.75,153.6,27.5]
[1727360209005,27.5,153.71,153.6,27.5]
[1727360209211,3.2535,153.67,153.6,27.5]
[1727360209408,27.5,153.71,153.6,27.5]
[1727360209808,27.5,153.71,153.63,3.2543]
[1727360210511,27.5,153.71,153.57,27.5]
[1727360211103,27.5,153.71,153.59,27.5]
[1727360211503,3.2534,153.68,153.59,27.5]
[1727360211707,27.5,153.71,153.59,27.5]
[1727360212114,27.5,153.71,153.64,3.2541]
[1727360212618,3.2531,153.69,153.64,3.2541]
[1727360213212,3.2531,153.69,153.65,3.2539]
[1727360213919,27.5,153.69,153.57,78.12]
[1727360214116,27.5,153.69,153.58,6.36553089]
[1727360214421,17.19,153.68,153.58,23.55543256]
[1727360214620,20.4434,153.68,153.58,23.55543256]
[1727360215217,17.19,153.68,153.58,17.19]
[1727360215412,17.19,153.66,153.58,6.36506745]
[1727360215621,17.19,153.66,153.56,20.46667952]
[1727360215825,17.19,153.66,153.57,6.36515188]
[1727360216026,17.19,153.66,153.56,26.8318314]
[1727360216225,17.19,153.64,153.56,3.27667952]
[1727360216522,17.19,153.64,153.55,78.12]
[1727360217017,20.4442,153.64,153.59,3.2551]
[1727360217413,6.5047,153.73,153.62,3.2545]
[1727360217619,17.19,153.69,153.62,3.2545]
[1727360218021,3.254,153.65,153.56,6.36624249]
[1727360218220,17.19,153.6,153.56,6.36624249]
[1727360218521,17.19,153.6,153.55,78.12]
[1727360218728,6.00292994,153.68,153.55,78.12]
[1727360218729,1.272,153.67,153.55,78.12]
[1727360218926,17.19,153.63,153.55,78.12]
[1727360219124,17.19,153.59,153.55,78.12]
[1727360219325,17.19,153.59,153.49,17.19]
[1727360219526,20.4453,153.59,153.49,17.19]
[1727360220225,17.19,153.59,153.49,17.19]
[1727360220426,17.19,153.61,153.51,17.19]
[1727360220620,17.19,153.61,153.52,6.36700561]
[1727360220621,20.4449,153.61,153.52,6.36700561]
[1727360220826,17.19,153.54,153.53,6.36700561]
[1727360221233,17.19,153.54,153.53,2.14700561]
[1727360221422,17.19,153.54,153.46,78.12]
[1727360221623,17.19,153.56,153.46,95.31]
[1727360221819,17.19,153.54,153.46,95.31]
[1727360222022,17.19,153.54,153.46,78.12]
[1727360222425,27.53,153.56,153.46,78.12]
[1727360223634,27.53,153.53,153.4,78.16]
[1727360223826,1.3594,153.52,153.4,81.42197419]
[1727360224320,27.53,153.48,153.38,4.65829032]
[1727360225120,27.53,153.48,153.42,3.2587]
[1727360225532,27.53,153.48,153.38,4.65829032]
[1727360225731,27.53,153.48,153.43,3.2584]
[1727360226230,27.53,153.48,153.38,3.26849032]
[1727360226432,30.1322,153.51,153.37,1.3877]
[1727360226630,30.1322,153.51,153.38,27.53]
[1727360226834,30.1322,153.51,153.39,1.2991]
[1727360227436,2.6022,153.51,153.4,27.53]
[1727360227621,2.6022,153.51,153.43,27.53]
[1727360227835,1.3594,153.52,153.43,27.53]
[1727360230529,1.3594,153.52,153.39,1.2991]
[1727360230530,27.53,153.5,153.39,1.2991]
[1727360231035,1.4065,153.49,153.39,1.2991]
[1727360231431,1.2977,153.48,153.39,1.2991]
[1727360231730,1.3594,153.52,153.41,27.53]
[1727360232728,1.3594,153.52,153.43,27.53]
[1727360233136,1.3594,153.52,153.49,3.2571]
[1727360233534,1.3594,153.52,153.43,27.53]
[1727360234035,1.3594,153.52,153.41,27.53]
[1727360234340,1.3594,153.52,153.39,28.8291]
[1727360235432,1.3594,153.52,153.44,3.2582]
[1727360235635,1.3594,153.52,153.39,28.8291]
[1727360235936,1.3594,153.52,153.47,3.2576]
[1727360236937,1.3594,153.52,153.41,27.53]
[1727360236938,1.3594,153.52,153.46,3.2579]
[1727360237140,1.3594,153.52,153.41,27.53]
[1727360237944,1.3594,153.52,153.44,27.53]
[1727360238142,1.3594,153.52,153.5,3.257]
[1727360238944,1.3594,153.52,153.49,3.2573]
[1727360239242,1.3594,153.52,153.41,27.53]
[1727360239634,1.3594,153.52,153.39,79.4991]
[1727360239635,1.3594,153.52,153.39,107.0291]
[1727360239839,3.2571,153.5,153.39,107.0291]
[1727360240039,3.2571,153.5,153.45,3.258]
[1727360240543,3.2571,153.51,153.39,107.0291]
[1727360240944,3.2571,153.51,153.41,27.53]
[1727360241145,1.3594,153.52,153.41,27.53]
[1727360241638,1.3594,153.52,153.44,27.53]
[1727360241946,1.3594,153.52,153.45,3.24555247]
[1727360242244,1.3594,153.52,153.49,3.2573]
[1727360242844,1.3594,153.52,153.45,3.24555247]
[1727360243248,2.6717,153.54,153.45,3.24555247]
[1727360243443,2.6717,153.54,153.49,3.2572]
[1727360243640,5.9281,153.54,153.49,3.2572]
[1727360244649,3.2565,153.53,153.49,3.2572]
[1727360244939,2.6717,153.54,153.48,3.2575]
[1727360245141,3.2567,153.53,153.48,3.2575]
[1727360245447,3.2567,153.53,153.44,27.53]
[1727360245649,2.6717,153.54,153.41,27.53]
[1727360245944,27.53,153.53,153.4,78.2]
[1727360246145,27.53,153.53,153.46,3.2578]
[1727360246545,3.2571,153.51,153.46,3.2578]
[1727360246842,2.6717,153.54,153.41,27.53]
[1727360247341,3.2568,153.52,153.41,27.53]
[1727360247542,2.6717,153.54,153.43,27.53]
[1727360247746,5.928,153.54,153.43,27.53]
[1727360247947,5.928,153.54,153.49,3.2573]
[1727360248551,2.6717,153.54,153.47,3.2576]
[1727360249051,2.6717,153.54,153.49,3.2573]
[1727360249351,2.6717,153.54,153.43,27.53]
[1727360249555,1.3087,153.57,153.51,3.2568]
[1727360250049,3.256,153.56,153.51,3.2568]
[1727360250349,1.3087,153.57,153.47,3.23588841]
[1727360250548,1.3087,153.57,153.49,27.53]
[1727360250749,1.3087,153.57,153.54,3.2561]
[1727360251050,1.3087,153.57,153.5,3.32942402]
[1727360251841,1.3087,153.57,153.52,3.2566]
[1727360253744,3.2559,153.56,153.46,27.53]
[1727360253951,1.3087,153.57,153.46,27.53]
[1727360254155,1.3087,153.57,153.46,30.85789702]
[1727360254343,3.2561,153.55,153.46,30.85789702]
[1727360254545,1.3087,153.57,153.46,3.32789702]
[1727360255251,27.53,153.55,153.45,2.7527]
[1727360255652,27.53,153.55,153.46,3.20998582]
[1727360255853,28.8387,153.57,153.45,30.2827]
[1727360256148,1.3087,153.57,153.48,27.53]
[1727360256343,1.3087,153.57,153.45,30.2827]
[1727360256344,1.3087,153.57,153.45,33.57737343]
[1727360257148,27.53,153.66,153.5,27.53]
[1727360257345,3.2542,153.64,153.58,3.2553]
[1727360257547,31.5391,153.66,153.53,2.6079]
[1727360257748,31.5391,153.66,153.54,3.21484855]
[1727360257949,3.2544,153.63,153.54,3.21484855]
[1727360258354,34.79369435,153.66,153.53,2.6079]
[1727360258562,34.79369435,153.66,153.53,5.84392459]
[1727360258857,3.2547,153.62,153.56,3.2557]
[1727360259455,3.2547,153.62,153.57,3.2556]
[1727360259856,3.2547,153.62,153.56,3.2558]
[1727360260058,3.2544,153.63,153.53,5.84392459]
[1727360260260,31.5391,153.66,153.55,27.53]
[1727360260261,4.0091,153.66,153.55,27.53]
[1727360260452,3.254,153.65,153.59,3.255]
[1727360260853,4.0091,153.66,153.59,3.255]
[1727360261064,4.0091,153.66,153.55,27.53]
[1727360261065,4.0091,153.66,153.58,3.2554]
[1727360261250,31.5391,153.66,153.53,2.6079]
[1727360261456,4.0091,153.66,153.48,105.71]
[1727360261663,27.53,153.64,153.5,27.53]
[1727360261855,27.53,153.64,153.53,27.53]
[1727360262056,30.7843,153.64,153.58,3.2553]
[1727360262256,27.53,153.64,153.58,3.2553]
[1727360262459,27.53,153.64,153.53,27.53]
[1727360262762,27.53,153.64,153.56,3.2557]
[1727360262961,27.53,153.64,153.53,30.80774671]
[1727360263157,27.53,153.64,153.53,3.27774671]
[1727360263461,4.0091,153.66,153.5,27.53]
[1727360263462,27.53,153.62,153.5,27.53]
[1727360263661,3.2551,153.6,153.5,27.53]
[1727360264063,27.53,153.65,153.5,27.53]
[1727360264264,3.2544,153.63,153.57,3.2554]
[1727360264660,3.2544,153.63,153.54,3.30640958]
[1727360264661,3.2545,153.63,153.58,3.2554]
[1727360264862,4.0091,153.66,153.53,27.53]
[1727360265166,4.0091,153.66,153.53,30.7709458]
[1727360265664,27.53,153.65,153.53,30.7709458]
[1727360266064,7.2628,153.66,153.61,3.2546]
[1727360266263,4.0091,153.66,153.55,27.53]
[1727360266462,3.2541,153.65,153.58,3.2554]
[1727360266758,3.2541,153.65,153.55,30.82273058]
[1727360267461,4.0091,153.66,153.55,30.82273058]
[1727360267868,3.254,153.65,153.6,3.2549]
[1727360268259,1.3366,153.66,153.56,2.6336]
[1727360268470,3.253,153.7,153.61,27.53]
[1727360268765,3.253,153.7,153.65,3.2539]
[1727360269468,3.2531,153.69,153.64,3.254]
[1727360269867,3.2531,153.7,153.65,3.2539]
[1727360270671,3.2531,153.69,153.65,3.2539]
[1727360271061,1.2859,153.71,153.61,27.53]
[1727360272159,1.3492,153.75,153.64,27.53]
[1727360272471,1.3492,153.75,153.66,27.53]
[1727360272673,27.53,153.74,153.44,6.52]
[1727360272969,27.53,153.74,153.59,27.53]
[1727360273167,1.3492,153.75,153.64,27.53]
[1727360273369,1.3492,153.75,153.64,30.77099993]
[1727360273669,1.3492,153.75,153.65,2.7363]
[1727360274069,3.2524,153.73,153.65,2.7363]
[1727360274263,1.3492,153.75,153.65,2.7363]
[1727360274462,2.7078,153.76,153.65,2.7363]
[1727360274669,3.2522,153.74,153.68,3.2532]
[1727360274862,2.7078,153.76,153.68,3.2532]
[1727360275363,2.7078,153.76,153.65,2.7363]
[1727360275974,3.2521,153.74,153.65,2.7363]
[1727360276273,1.4052,153.76,153.67,27.53]
[1727360276568,1.4052,153.76,153.7,3.2527]
[1727360276768,1.4052,153.76,153.65,2.7363]
[1727360276965,3.2524,153.73,153.65,2.7363]
[1727360277166,1.4052,153.76,153.65,2.7363]
[1727360277361,1.4052,153.76,153.67,27.53]
[1727360279171,1.4052,153.76,153.69,3.2529]
[1727360279374,1.4052,153.76,153.65,2.7363]
[1727360280371,1.4052,153.76,153.67,3.2533]
[1727360280569,1.4052,153.76,153.65,2.7363]
[1727360280770,27.53,153.74,153.62,78.12]
[1727360281164,1.4052,153.76,153.62,78.12]
[1727360281374,28.9352,153.76,153.62,78.12]
[1727360281575,28.9352,153.76,153.64,27.53]
[1727360282075,3.2518,153.75,153.7,3.2529]
[1727360282373,1.4052,153.76,153.66,27.53]
[1727360282573,1.3798,153.77,153.71,3.2525]
[1727360283070,1.3798,153.77,153.7,3.2527]
[1727360283375,1.3798,153.77,153.66,27.53]
[1727360283376,1.3798,153.77,153.68,3.18986902]
[1727360283983,27.53,153.84,153.69,27.53]
[1727360284173,2.7014,153.85,153.71,27.53]
[1727360284372,2.7014,153.85,153.74,27.53]
[1727360284567,27.53,153.84,153.72,2.6955]
[1727360284872,27.53,153.81,153.72,2.6955]
[1727360285070,27.53,153.84,153.74,3.2519]
[1727360285279,2.7014,153.85,153.72,2.6955]
[1727360285480,27.53,153.84,153.72,2.6955]
[1727360286368,27.53,153.84,153.75,3.2518]
[1727360286569,27.53,153.84,153.72,2.6955]
[1727360286983,27.53,153.84,153.75,3.2518]
[1727360287177,27.53,153.84,153.72,2.6955]
[1727360287374,2.7014,153.85,153.72,2.6955]
[1727360287375,2.7014,153.85,153.72,30.2255]
[1727360287579,2.7014,153.85,153.74,27.53]
[1727360287979,3.2506,153.81,153.74,27.53]
[1727360288178,1.3792,153.86,153.77,27.53]
[1727360288680,1.3792,153.86,153.77,30.77300585]
[1727360289178,2.762,153.93,153.77,30.77300585]
[1727360289480,109.3973,153.89,153.77,30.77300585]
[1727360289681,3.2496,153.86,153.81,3.2505]
[1727360290279,109.3973,153.89,153.81,3.2505]
[1727360290479,109.3973,153.89,153.77,30.77300585]
[1727360290980,109.3973,153.89,153.81,3.2505]
[1727360290981,3.2497,153.86,153.81,3.2505]
[1727360291184,27.53,153.88,153.77,27.53]
[1727360291489,27.53,153.88,153.78,3.251]
[1727360292297,3.2507,153.81,153.74,81.38466181]
[1727360292482,27.53,153.85,153.74,78.06]
[1727360292881,27.53,153.82,153.74,78.06]
[1727360293085,1.362,153.84,153.74,81.23297684]
[1727360293486,3.2508,153.8,153.74,78.06]
[1727360293785,3.2508,153.8,153.74,81.38422586]
[1727360293989,3.2508,153.8,153.75,3.2517]
[1727360294191,3.2506,153.81,153.74,78.06]
[1727360294588,28.892,153.84,153.74,81.30681238]
[1727360294984,3.2507,153.81,153.74,78.06]
[1727360295189,28.892,153.84,153.74,81.28697111]
[1727360295691,1.2902,153.86,153.75,27.53]
[1727360295890,6.4969,153.92,153.75,27.53]
[1727360295891,27.53,153.9,153.75,27.53]
[1727360296086,27.53,153.9,153.77,27.53]
[1727360296291,2.6671,153.91,153.8,27.53]
[1727360296690,2.6671,153.91,153.82,3.2503]
[1727360297194,2.6671,153.91,153.85,3.2497]
[1727360297389,108.0,153.89,153.85,27.53]
[1727360297590,105.8895,153.89,153.85,27.53]
[1727360297790,103.779,153.89,153.88,3.2491]
[1727360298191,103.779,153.89,153.85,30.75137256]
[1727360298388,103.779,153.89,153.88,3.2491]
[1727360299097,103.779,153.89,153.87,3.2493]
[1727360299287,103.779,153.89,153.82,27.53]
[1727360299493,103.779,153.89,153.82,3.30267775]
[1727360299787,103.779,153.89,153.81,1.355]
[1727360299994,103.779,153.89,153.83,3.2501]